[Event "IV Elllobregat Open Chess Tmnt"]
[Site "Sant Boi de Llobregat, Spain"]
[Date "2023.12.03"]
[Round "4.22"]
[White "Muradli, Mahammad"]
[Black "Fiorito, Joaquin"]
[Result "1-0"]
[TimeControl "90min/40moves + 15min/end + 30sec from move 1"]
[WhiteFideId "13409301"]
[BlackFideId "180173"]
[WhiteElo "2550"]
[BlackElo "2398"]

1. c4 {[%clk 01:25:45]} {[%emt 00:05:15]} Nf6 {[%clk 01:30:36]} {[%emt
00:00:24]} 2. g3 {[%clk 01:25:37]} {[%emt 00:00:38]} e6 {[%clk 01:30:58]}
{[%emt 00:00:07]} 3. Bg2 {[%clk 01:25:57]} {[%emt 00:00:11]} d5 {[%clk
01:31:21]} {[%emt 00:00:08]} 4. Nf3 {[%clk 01:25:40]} {[%emt 00:00:46]} d4
{[%clk 01:30:25]} {[%emt 00:01:26]} 5. O-O {[%clk 01:24:48]} {[%emt 00:01:22]}
c5 {[%clk 01:30:26]} {[%emt 00:00:29]} 6. e3 {[%clk 01:25:08]} {[%emt
00:00:10]} Nc6 {[%clk 01:30:49]} {[%emt 00:00:07]} 7. exd4 {[%clk 01:24:45]}
{[%emt 00:00:54]} cxd4 {[%clk 01:31:11]} {[%emt 00:00:07]} 8. d3 {[%clk
01:25:05]} {[%emt 00:00:10]} Bd6 {[%clk 01:30:52]} {[%emt 00:00:49]} 9. Bg5
{[%clk 01:24:01]} {[%emt 00:01:34]} h6 {[%clk 01:31:06]} {[%emt 00:00:15]} 10.
Bxf6 {[%clk 01:24:27]} {[%emt 00:00:04]} Qxf6 {[%clk 01:28:17]} {[%emt
00:03:18]} 11. Nbd2 {[%clk 01:24:40]} {[%emt 00:00:17]} O-O {[%clk 01:27:18]}
{[%emt 00:01:30]} 12. a3 {[%clk 01:23:11]} {[%emt 00:02:00]} a5 {[%clk
01:26:40]} {[%emt 00:01:07]} 13. Ne4 {[%clk 01:20:08]} {[%emt 00:03:33]} Qe7
{[%clk 01:26:42]} {[%emt 00:00:28]} 14. Nxd6 {[%clk 01:20:34]} {[%emt
00:00:04]} Qxd6 {[%clk 01:27:07]} {[%emt 00:00:05]} 15. Rc1 {[%clk 01:20:55]}
{[%emt 00:00:09]} e5 {[%clk 01:23:41]} {[%emt 00:03:56]} 16. c5 {[%clk
01:11:34]} {[%emt 00:09:51]} Qc7 {[%clk 01:17:53]} {[%emt 00:06:17]} 17. Nd2
{[%clk 01:11:34]} {[%emt 00:00:31]} Be6 {[%clk 01:17:04]} {[%emt 00:01:19]} 18.
Nc4 {[%clk 01:08:53]} {[%emt 00:03:11]} f5 {[%clk 01:10:56]} {[%emt 00:06:37]}
19. Re1 {[%clk 01:06:11]} {[%emt 00:03:12]} Bxc4 {[%clk 01:01:55]} {[%emt
00:09:31]} 20. Rxc4 {[%clk 01:06:16]} {[%emt 00:00:25]} Rae8 {[%clk 01:01:35]}
{[%emt 00:00:50]} 21. Rc1 {[%clk 00:52:11]} {[%emt 00:14:35]} Kh8 {[%clk
00:59:52]} {[%emt 00:02:12]} 22. Qb3 {[%clk 00:46:05]} {[%emt 00:06:36]} e4
{[%clk 00:56:28]} {[%emt 00:03:53]} 23. dxe4 {[%clk 00:43:59]} {[%emt
00:02:38]} f4 {[%clk 00:56:26]} {[%emt 00:00:31]} 24. e5 {[%clk 00:19:18]}
{[%emt 00:25:12]} f3 {[%clk 00:52:46]} {[%emt 00:04:09]} 25. Bxf3 {[%clk
00:16:37]} {[%emt 00:03:10]} Nxe5 {[%clk 00:51:19]} {[%emt 00:01:59]} 26. Bg2
{[%clk 00:15:40]} {[%emt 00:01:26]} d3 {[%clk 00:49:33]} {[%emt 00:02:16]} 27.
Re4 {[%clk 00:07:22]} {[%emt 00:08:49]} Rd8 {[%clk 00:23:43]} {[%emt 00:26:21]}
28. Qc3 {[%clk 00:07:05]} {[%emt 00:00:47]} Nf3+ {[%clk 00:08:54]} {[%emt
00:15:18]} 29. Bxf3 {[%clk 00:03:09]} {[%emt 00:04:27]} Rxf3 {[%clk 00:09:23]}
30. Rd1 {[%clk 00:02:06]} {[%emt 00:01:32]} Qf7 {[%clk 00:06:06]} {[%emt
00:03:48]} 31. Rd2 {[%clk 00:02:21]} {[%emt 00:00:15]} Rf8 {[%clk 00:04:56]}
{[%emt 00:01:40]} 32. Qd4 {[%clk 00:02:30]} {[%emt 00:00:20]} Qf5 {[%clk
00:03:57]} {[%emt 00:01:30]} 33. Re7 {[%clk 00:01:21]} {[%emt 00:01:37]} Qg5
{[%clk 00:03:24]} {[%emt 00:01:05]} 34. Rxb7 {[%clk 00:01:07]} {[%emt
00:00:44]} Rd8 {[%clk 00:02:35]} {[%emt 00:01:19]} 35. Qc3 {[%clk 00:01:27]}
{[%emt 00:00:10]} Rff8 {[%clk 00:01:16]} {[%emt 00:01:49]} 36. h4 {[%clk
00:00:40]} {[%emt 00:01:16]} Qg4 {[%clk 00:01:06]} {[%emt 00:00:41]} 37. Rxd3
{[%clk 00:00:31]} {[%emt 00:00:39]} Rde8 {[%clk 00:01:11]} {[%emt 00:00:26]} 38.
Rd6 {[%clk 00:00:32]} {[%emt 00:00:29]} Rf3 {[%clk 00:01:02]} {[%emt 00:00:39]}
39. Rd3 {[%clk 00:00:32]} {[%emt 00:00:30]} Rf6 {[%clk 00:00:38]} {[%emt
00:00:54]} 40. Rb6 {[%clk 00:15:33]} {[%emt 00:00:29]} Rfe6 {[%clk 00:15:33]}
{[%emt 00:00:35]} 41. Rxe6 {[%clk 00:15:50]} {[%emt 00:00:14]} Rxe6 {[%clk
00:15:05]} {[%emt 00:00:58]} 42. Rd8+ {[%clk 00:16:13]} {[%emt 00:00:06]} Kh7
{[%clk 00:15:32]} {[%emt 00:00:03]} 43. Qd3+ {[%clk 00:16:37]} {[%emt
00:00:06]} 1-0

[Event "IV Elllobregat Open Chess Tmnt"]
[Site "Sant Boi de Llobregat, Spain"]
[Date "2023.12.03"]
[Round "4.23"]
[White "Vetokhin, Savva"]
[Black "Arizmendi Martinez, Julen Luis"]
[Result "1-0"]
[TimeControl "90min/40moves + 15min/end + 30sec from move 1"]
[WhiteFideId "44144474"]
[BlackFideId "2205092"]
[WhiteElo "2403"]
[BlackElo "2525"]

1. d4 {[%clk 01:30:58]} Nf6 {[%clk 01:27:46]} {[%emt 00:03:15]} 2. c4 {[%clk
01:31:15]} {[%emt 00:00:13]} e6 {[%clk 01:27:53]} {[%emt 00:00:23]} 3. Nf3
{[%clk 01:31:30]} {[%emt 00:00:14]} d5 {[%clk 01:27:21]} {[%emt 00:01:02]} 4.
Nc3 {[%clk 01:31:50]} {[%emt 00:00:11]} a6 {[%clk 01:20:58]} {[%emt 00:06:54]}
5. cxd5 {[%clk 01:30:00]} {[%emt 00:02:19]} exd5 {[%clk 01:19:59]} {[%emt
00:01:29]} 6. Bg5 {[%clk 01:30:00]} {[%emt 00:00:30]} Be6 {[%clk 01:18:54]}
{[%emt 00:01:35]} 7. e3 {[%clk 01:28:30]} {[%emt 00:01:58]} Nbd7 {[%clk
01:17:31]} {[%emt 00:01:54]} 8. Bd3 {[%clk 01:26:24]} {[%emt 00:02:36]} Bd6
{[%clk 01:17:09]} {[%emt 00:00:53]} 9. O-O {[%clk 01:25:42]} {[%emt 00:01:11]}
O-O {[%clk 01:16:27]} {[%emt 00:01:12]} 10. Qc2 {[%clk 01:23:29]} {[%emt
00:02:42]} Qb8 {[%clk 00:59:04]} {[%emt 00:17:54]} 11. h3 {[%clk 01:08:07]}
{[%emt 00:15:51]} h6 {[%clk 00:52:14]} {[%emt 00:07:21]} 12. Bf4 {[%clk
01:07:44]} {[%emt 00:00:53]} c6 {[%clk 00:51:21]} {[%emt 00:01:23]} 13. Qd2
{[%clk 01:05:33]} {[%emt 00:02:41]} Nh5 {[%clk 00:40:08]} {[%emt 00:11:43]} 14.
Ne2 {[%clk 00:57:07]} {[%emt 00:08:55]} Re8 {[%clk 00:29:09]} {[%emt 00:11:29]}
15. Bxd6 {[%clk 00:44:45]} {[%emt 00:12:52]} Qxd6 {[%clk 00:29:20]} {[%emt
00:00:20]} 16. Nf4 {[%clk 00:45:07]} {[%emt 00:00:07]} Nxf4 {[%clk 00:25:47]}
{[%emt 00:04:04]} 17. exf4 {[%clk 00:45:31]} {[%emt 00:00:06]} Nf6 {[%clk
00:26:04]} {[%emt 00:00:13]} 18. Rfe1 {[%clk 00:39:33]} {[%emt 00:06:27]} c5
{[%clk 00:18:37]} {[%emt 00:07:58]} 19. dxc5 {[%clk 00:38:51]} {[%emt
00:01:12]} Qxc5 {[%clk 00:19:05]} {[%emt 00:00:02]} 20. Nd4 {[%clk 00:36:43]}
{[%emt 00:02:38]} Bd7 {[%clk 00:13:14]} {[%emt 00:06:21]} 21. Re5 {[%clk
00:34:38]} {[%emt 00:02:35]} Re7 {[%clk 00:01:16]} {[%emt 00:12:29]} 22. Qe3
{[%clk 00:29:57]} {[%emt 00:05:11]} Ree8 {[%clk 00:01:20]} {[%emt 00:00:26]} 23.
Qd2 {[%clk 00:28:48]} {[%emt 00:01:39]} Kf8 {[%clk 00:00:58]} {[%emt 00:00:52]}
24. Qe3 {[%clk 00:27:19]} {[%emt 00:01:58]} Kg8 {[%clk 00:01:26]} {[%emt
00:00:02]} 25. Re1 {[%clk 00:27:42]} {[%emt 00:00:06]} Qb4 {[%clk 00:01:18]}
{[%emt 00:00:39]} 26. b3 {[%clk 00:25:39]} {[%emt 00:02:33]} Rad8 {[%clk
00:01:24]} {[%emt 00:00:23]} 27. Bb1 {[%clk 00:24:14]} {[%emt 00:01:56]} a5
{[%clk 00:01:17]} {[%emt 00:00:37]} 28. Rd1 {[%clk 00:23:12]} {[%emt 00:01:32]}
Rc8 {[%clk 00:01:09]} {[%emt 00:00:38]} 29. Bf5 {[%clk 00:21:13]} {[%emt
00:02:29]} Kf8 {[%clk 00:00:35]} {[%emt 00:01:05]} 30. Nc2 {[%clk 00:15:32]}
{[%emt 00:06:10]} Qc5 {[%clk 00:00:32]} {[%emt 00:00:33]} 31. Rxe8+ {[%clk
00:15:46]} {[%emt 00:00:16]} Nxe8 {[%clk 00:00:57]} {[%emt 00:00:05]} 32. Bxd7
{[%clk 00:15:58]} {[%emt 00:00:18]} Qxc2 {[%clk 00:01:13]} {[%emt 00:00:14]} 33.
Re1 {[%clk 00:16:26]} {[%emt 00:00:03]} 1-0

[Event "IV Elllobregat Open Chess Tmnt"]
[Site "Sant Boi de Llobregat, Spain"]
[Date "2023.12.03"]
[Round "4.24"]
[White "Ootes, Lars"]
[Black "Pranav, Anand"]
[Result "0-1"]
[TimeControl "90min/40moves + 15min/end + 30sec from move 1"]
[WhiteFideId "1019708"]
[BlackFideId "46626786"]
[WhiteElo "2389"]
[BlackElo "2520"]

1. e4 {[%clk 01:25:53]} {[%emt 00:05:05]} c5 {[%clk 01:30:48]} {[%emt
00:00:11]} 2. Nf3 {[%clk 01:25:52]} {[%emt 00:00:33]} d6 {[%clk 01:31:09]}
{[%emt 00:00:08]} 3. d4 {[%clk 01:26:15]} {[%emt 00:00:08]} cxd4 {[%clk
01:31:34]} {[%emt 00:00:05]} 4. Nxd4 {[%clk 01:26:41]} {[%emt 00:00:04]} Nf6
{[%clk 01:31:58]} {[%emt 00:00:05]} 5. Nc3 {[%clk 01:27:06]} {[%emt 00:00:06]}
a6 {[%clk 01:32:24]} {[%emt 00:00:04]} 6. Bg5 {[%clk 01:27:08]} {[%emt
00:00:28]} Nbd7 {[%clk 01:32:46]} {[%emt 00:00:07]} 7. Bc4 {[%clk 01:21:56]}
{[%emt 00:05:43]} Qb6 {[%clk 01:32:49]} {[%emt 00:00:27]} 8. Bb3 {[%clk
01:21:50]} {[%emt 00:00:36]} e6 {[%clk 01:32:53]} {[%emt 00:00:26]} 9. Qd2
{[%clk 01:21:28]} {[%emt 00:00:53]} Be7 {[%clk 01:33:13]} {[%emt 00:00:09]} 10.
O-O-O {[%clk 01:20:59]} {[%emt 00:01:00]} Nc5 {[%clk 01:33:32]} {[%emt
00:00:11]} 11. Rhe1 {[%clk 01:20:17]} {[%emt 00:01:12]} h6 {[%clk 01:32:50]}
{[%emt 00:01:12]} 12. Bh4 {[%clk 01:14:25]} {[%emt 00:06:22]} O-O {[%clk
01:32:40]} {[%emt 00:00:39]} 13. g3 {[%clk 01:04:25]} {[%emt 00:10:31]} Qc7
{[%clk 01:32:15]} {[%emt 00:00:55]} 14. f4 {[%clk 01:02:50]} {[%emt 00:02:06]}
Re8 {[%clk 01:32:32]} {[%emt 00:00:13]} 15. g4 {[%clk 00:45:32]} {[%emt
00:17:48]} Nfxe4 {[%clk 01:26:52]} {[%emt 00:06:09]} 16. Nxe4 {[%clk 00:44:46]}
{[%emt 00:01:17]} Bxh4 {[%clk 01:27:01]} {[%emt 00:00:21]} 17. Re2 {[%clk
00:27:13]} {[%emt 00:18:03]} Be7 {[%clk 01:08:06]} {[%emt 00:19:25]} 18. g5
{[%clk 00:21:14]} {[%emt 00:06:29]} Nxe4 {[%clk 01:06:35]} {[%emt 00:02:01]} 19.
Rxe4 {[%clk 00:21:38]} {[%emt 00:00:06]} d5 {[%clk 01:06:42]} {[%emt 00:00:23]}
20. Re2 {[%clk 00:17:25]} {[%emt 00:04:43]} Bd6 {[%clk 01:02:56]} {[%emt
00:04:16]} 21. Rf1 {[%clk 00:17:00]} {[%emt 00:00:54]} hxg5 {[%clk 01:02:16]}
{[%emt 00:01:09]} 22. fxg5 {[%clk 00:16:58]} {[%emt 00:00:33]} Bd7 {[%clk
00:57:01]} {[%emt 00:05:46]} 23. g6 {[%clk 00:10:39]} {[%emt 00:06:49]} Re7
{[%clk 00:53:05]} {[%emt 00:04:25]} 24. Qg5 {[%clk 00:06:35]} {[%emt 00:04:33]}
fxg6 {[%clk 00:46:07]} {[%emt 00:07:28]} 25. Bxd5 {[%clk 00:04:13]} {[%emt
00:02:53]} Rf8 {[%clk 00:36:44]} {[%emt 00:09:54]} 26. Rxf8+ {[%clk 00:03:06]}
{[%emt 00:01:36]} Kxf8 {[%clk 00:36:42]} {[%emt 00:00:31]} 27. Rf2+ {[%clk
00:00:53]} {[%emt 00:02:43]} Rf7 {[%clk 00:36:38]} {[%emt 00:00:34]} 28. Rxf7+
{[%clk 00:00:45]} {[%emt 00:00:38]} Kxf7 {[%clk 00:37:07]} {[%emt 00:00:01]} 29.
Bxe6+ {[%clk 00:00:36]} {[%emt 00:00:40]} Bxe6 {[%clk 00:37:34]} {[%emt
00:00:02]} 30. Nxe6 {[%clk 00:01:01]} {[%emt 00:00:05]} Kxe6 {[%clk 00:37:51]}
{[%emt 00:00:14]} 31. Qxg6+ {[%clk 00:01:26]} {[%emt 00:00:06]} Kd5 {[%clk
00:37:53]} {[%emt 00:00:28]} 32. Qg2+ {[%clk 00:01:28]} {[%emt 00:00:28]} Kc5
{[%clk 00:38:08]} {[%emt 00:00:15]} 33. Qf2+ {[%clk 00:00:41]} {[%emt
00:01:18]} Kc6 {[%clk 00:38:32]} {[%emt 00:00:05]} 34. c4 {[%clk 00:00:47]}
{[%emt 00:00:25]} Qe7 {[%clk 00:38:03]} {[%emt 00:00:59]} 0-1

[Event "IV Elllobregat Open Chess Tmnt"]
[Site "Sant Boi de Llobregat, Spain"]
[Date "2023.12.03"]
[Round "4.25"]
[White "Pranesh, M"]
[Black "Laddha, Shubh Jayesh"]
[Result "1-0"]
[TimeControl "90min/40moves + 15min/end + 30sec from move 1"]
[WhiteFideId "35028600"]
[BlackFideId "30942799"]
[WhiteElo "2519"]
[BlackElo "2373"]

1. e4 {[%clk 01:30:39]} {[%emt 00:00:20]} e5 {[%clk 01:30:55]} {[%emt
00:00:06]} 2. Nf3 {[%clk 01:30:58]} {[%emt 00:00:10]} Nc6 {[%clk 01:31:20]}
{[%emt 00:00:05]} 3. Bb5 {[%clk 01:31:19]} {[%emt 00:00:09]} a6 {[%clk
01:31:45]} {[%emt 00:00:05]} 4. Ba4 {[%clk 01:31:44]} {[%emt 00:00:05]} Nf6
{[%clk 01:32:10]} {[%emt 00:00:05]} 5. O-O {[%clk 01:32:05]} {[%emt 00:00:09]}
Be7 {[%clk 01:32:37]} {[%emt 00:00:04]} 6. Re1 {[%clk 01:32:25]} {[%emt
00:00:09]} b5 {[%clk 01:33:02]} {[%emt 00:00:05]} 7. Bb3 {[%clk 01:32:50]}
{[%emt 00:00:05]} O-O {[%clk 01:33:28]} {[%emt 00:00:04]} 8. a4 {[%clk
01:33:14]} {[%emt 00:00:07]} b4 {[%clk 01:33:53]} {[%emt 00:00:04]} 9. d4
{[%clk 01:33:34]} {[%emt 00:00:09]} d6 {[%clk 01:34:16]} {[%emt 00:00:07]} 10.
dxe5 {[%clk 01:33:55]} {[%emt 00:00:09]} Nxe5 {[%clk 01:34:35]} {[%emt
00:00:12]} 11. Nxe5 {[%clk 01:33:18]} {[%emt 00:01:06]} dxe5 {[%clk 01:34:58]}
{[%emt 00:00:07]} 12. Nd2 {[%clk 01:33:27]} {[%emt 00:00:21]} Bc5 {[%clk
01:22:18]} {[%emt 00:13:10]} 13. h3 {[%clk 01:33:20]} {[%emt 00:00:37]} h6
{[%clk 01:12:02]} {[%emt 00:10:46]} 14. Qf3 {[%clk 01:30:50]} {[%emt 00:03:00]}
Bb7 {[%clk 01:00:27]} {[%emt 00:12:05]} 15. Nf1 {[%clk 01:27:09]} {[%emt
00:04:11]} Nh7 {[%clk 00:43:24]} {[%emt 00:17:34]} 16. Ng3 {[%clk 01:14:12]}
{[%emt 00:13:26]} Qf6 {[%clk 00:41:14]} {[%emt 00:02:40]} 17. Qe2 {[%clk
01:09:16]} {[%emt 00:05:26]} Rfd8 {[%clk 00:37:34]} {[%emt 00:04:10]} 18. Be3
{[%clk 01:06:38]} {[%emt 00:03:08]} Bxe3 {[%clk 00:32:38]} {[%emt 00:05:25]} 19.
Qxe3 {[%clk 01:04:35]} {[%emt 00:02:33]} Ng5 {[%clk 00:30:02]} {[%emt
00:03:06]} 20. f3 {[%clk 01:01:32]} {[%emt 00:03:33]} Ne6 {[%clk 00:26:37]}
{[%emt 00:03:55]} 21. Bxe6 {[%clk 00:59:15]} {[%emt 00:02:46]} Qxe6 {[%clk
00:26:39]} {[%emt 00:00:28]} 22. Nf5 {[%clk 00:58:02]} {[%emt 00:01:43]} Qb6
{[%clk 00:23:59]} {[%emt 00:03:11]} 23. Qxb6 {[%clk 00:52:23]} {[%emt
00:06:08]} cxb6 {[%clk 00:23:41]} {[%emt 00:00:48]} 24. a5 {[%clk 00:52:44]}
{[%emt 00:00:09]} b5 {[%clk 00:19:52]} {[%emt 00:04:19]} 25. Rad1 {[%clk
00:47:43]} {[%emt 00:05:32]} Kf8 {[%clk 00:14:03]} {[%emt 00:06:18]} 26. b3
{[%clk 00:47:12]} {[%emt 00:01:01]} h5 {[%clk 00:09:58]} {[%emt 00:04:35]} 27.
Rxd8+ {[%clk 00:45:43]} {[%emt 00:01:59]} Rxd8 {[%clk 00:10:21]} {[%emt
00:00:07]} 28. Ne3 {[%clk 00:46:01]} {[%emt 00:00:12]} Bc6 {[%clk 00:06:47]}
{[%emt 00:04:04]} 29. Rd1 {[%clk 00:45:50]} {[%emt 00:00:41]} Rc8 {[%clk
00:06:59]} {[%emt 00:00:18]} 30. Rd2 {[%clk 00:45:01]} {[%emt 00:01:19]} g6
{[%clk 00:06:39]} {[%emt 00:00:50]} 31. g4 {[%clk 00:42:46]} {[%emt 00:02:44]}
hxg4 {[%clk 00:04:31]} {[%emt 00:02:37]} 32. Nxg4 {[%clk 00:41:26]} {[%emt
00:01:50]} Re8 {[%clk 00:04:31]} {[%emt 00:00:30]} 33. Rd6 {[%clk 00:41:48]}
{[%emt 00:00:09]} Bb7 {[%clk 00:03:50]} {[%emt 00:01:11]} 34. Rb6 {[%clk
00:41:54]} {[%emt 00:00:24]} Re7 {[%clk 00:02:58]} {[%emt 00:01:21]} 35. Nf2
{[%clk 00:41:04]} {[%emt 00:01:20]} Kg7 {[%clk 00:01:40]} {[%emt 00:01:48]} 36.
Nd3 {[%clk 00:41:19]} {[%emt 00:00:16]} f5 {[%clk 00:01:27]} {[%emt 00:00:42]}
37. Nc5 {[%clk 00:41:10]} {[%emt 00:00:39]} Bc8 {[%clk 00:01:14]} {[%emt
00:00:44]} 38. Rc6 {[%clk 00:37:07]} {[%emt 00:04:32]} Bb7 {[%clk 00:01:07]}
{[%emt 00:00:37]} 39. Rb6 {[%clk 00:36:10]} {[%emt 00:01:27]} Bc8 {[%clk
00:00:44]} {[%emt 00:00:54]} 40. Nd3 {[%clk 00:51:38]} {[%emt 00:00:01]} Bb7
{[%clk 00:15:47]} {[%emt 00:00:27]} 41. Nxb4 {[%clk 00:51:59]} {[%emt
00:00:09]} fxe4 {[%clk 00:15:23]} {[%emt 00:00:54]} 42. fxe4 {[%clk 00:52:24]}
{[%emt 00:00:05]} Bxe4 {[%clk 00:15:17]} {[%emt 00:00:37]} 43. Nxa6 {[%clk
00:52:19]} {[%emt 00:00:36]} Bxc2 {[%clk 00:14:27]} {[%emt 00:01:19]} 44. Nc5
{[%clk 00:52:44]} {[%emt 00:00:05]} Ra7 {[%clk 00:08:24]} {[%emt 00:06:33]} 45.
a6 {[%clk 00:52:53]} {[%emt 00:00:21]} Kh6 {[%clk 00:08:32]} {[%emt 00:00:22]}
46. Rxb5 {[%clk 00:52:41]} {[%emt 00:00:42]} e4 {[%clk 00:08:23]} {[%emt
00:00:39]} 47. Kf2 {[%clk 00:52:48]} {[%emt 00:00:22]} Bd3 {[%clk 00:08:04]}
{[%emt 00:00:49]} 48. Rb7 {[%clk 00:51:46]} {[%emt 00:01:33]} Ra8 {[%clk
00:08:17]} {[%emt 00:00:17]} 49. a7 {[%clk 00:51:11]} {[%emt 00:01:04]} Rf8+
{[%clk 00:08:22]} {[%emt 00:00:25]} 50. Ke3 {[%clk 00:51:33]} {[%emt 00:00:08]}
Ra8 {[%clk 00:08:41]} {[%emt 00:00:11]} 51. Nxd3 {[%clk 00:51:55]} {[%emt
00:00:09]} exd3 {[%clk 00:09:05]} {[%emt 00:00:06]} 52. Kxd3 {[%clk 00:52:20]}
{[%emt 00:00:05]} 1-0

[Event "IV Elllobregat Open Chess Tmnt"]
[Site "Sant Boi de Llobregat, Spain"]
[Date "2023.12.03"]
[Round "4.26"]
[White "Prraneeth, Vuppala"]
[Black "Fiorito, Francisco"]
[Result "1-0"]
[TimeControl "90min/40moves + 15min/end + 30sec from move 1"]
[WhiteFideId "46622373"]
[BlackFideId "180165"]
[WhiteElo "2512"]
[BlackElo "2370"]

1. e4 {[%clk 01:28:22]} {[%emt 00:02:37]} e6 {[%clk 01:30:55]} {[%emt
00:00:06]} 2. d4 {[%clk 01:28:29]} {[%emt 00:00:22]} d5 {[%clk 01:31:21]}
{[%emt 00:00:04]} 3. Nc3 {[%clk 01:28:54]} {[%emt 00:00:05]} dxe4 {[%clk
01:31:46]} {[%emt 00:00:05]} 4. Nxe4 {[%clk 01:29:15]} {[%emt 00:00:09]} Nd7
{[%clk 01:32:12]} {[%emt 00:00:05]} 5. g3 {[%clk 01:26:50]} {[%emt 00:02:55]}
Ngf6 {[%clk 01:31:08]} {[%emt 00:01:34]} 6. Nxf6+ {[%clk 01:25:26]} {[%emt
00:01:54]} Nxf6 {[%clk 01:31:12]} {[%emt 00:00:25]} 7. Bg2 {[%clk 01:24:30]}
{[%emt 00:01:27]} c5 {[%clk 01:28:03]} {[%emt 00:03:39]} 8. Ne2 {[%clk
01:21:14]} {[%emt 00:03:46]} cxd4 {[%clk 01:25:20]} {[%emt 00:03:13]} 9. Qxd4
{[%clk 01:21:21]} {[%emt 00:00:23]} Qa5+ {[%clk 01:13:07]} {[%emt 00:12:44]} 10.
Bd2 {[%clk 01:20:25]} {[%emt 00:01:25]} Qf5 {[%clk 01:12:11]} {[%emt 00:01:26]}
11. O-O {[%clk 01:11:19]} {[%emt 00:09:36]} Bc5 {[%clk 01:12:07]} {[%emt
00:00:34]} 12. Qf4 {[%clk 01:11:38]} {[%emt 00:00:11]} Qxf4 {[%clk 01:06:34]}
{[%emt 00:06:03]} 13. Bxf4 {[%clk 01:11:50]} {[%emt 00:00:18]} Nd5 {[%clk
01:02:23]} {[%emt 00:04:41]} 14. Be5 {[%clk 01:11:44]} {[%emt 00:00:35]} f6
{[%clk 01:01:53]} {[%emt 00:01:00]} 15. Bd4 {[%clk 01:11:53]} {[%emt 00:00:21]}
Bxd4 {[%clk 00:58:43]} {[%emt 00:03:40]} 16. Nxd4 {[%clk 01:12:21]} {[%emt
00:00:02]} Nc7 {[%clk 00:58:50]} {[%emt 00:00:23]} 17. Rfe1 {[%clk 01:06:46]}
{[%emt 00:06:05]} Kf7 {[%clk 00:58:58]} {[%emt 00:00:22]} 18. c4 {[%clk
00:57:04]} {[%emt 00:10:13]} Rb8 {[%clk 00:57:54]} {[%emt 00:01:33]} 19. a4
{[%clk 00:45:28]} {[%emt 00:12:07]} Rd8 {[%clk 00:52:24]} {[%emt 00:06:00]} 20.
Nb5 {[%clk 00:43:13]} {[%emt 00:02:45]} Nxb5 {[%clk 00:52:31]} {[%emt
00:00:23]} 21. axb5 {[%clk 00:43:40]} {[%emt 00:00:02]} a6 {[%clk 00:52:50]}
{[%emt 00:00:11]} 22. b6 {[%clk 00:42:50]} {[%emt 00:01:21]} Bd7 {[%clk
00:43:21]} {[%emt 00:09:59]} 23. c5 {[%clk 00:37:17]} {[%emt 00:06:02]} Rdc8
{[%clk 00:42:13]} {[%emt 00:01:38]} 24. Rad1 {[%clk 00:31:14]} {[%emt
00:06:33]} Bc6 {[%clk 00:31:42]} {[%emt 00:11:01]} 25. Bxc6 {[%clk 00:28:01]}
{[%emt 00:03:44]} Rxc6 {[%clk 00:32:10]} {[%emt 00:00:01]} 26. Rd7+ {[%clk
00:28:24]} {[%emt 00:00:06]} Kg6 {[%clk 00:32:36]} {[%emt 00:00:04]} 27. b4
{[%clk 00:28:39]} {[%emt 00:00:16]} e5 {[%clk 00:31:49]} {[%emt 00:01:18]} 28.
Rc1 {[%clk 00:25:48]} {[%emt 00:03:20]} h5 {[%clk 00:30:38]} {[%emt 00:01:42]}
29. Re7 {[%clk 00:25:26]} {[%emt 00:00:52]} Kh6 {[%clk 00:26:25]} {[%emt
00:04:43]} 30. Kg2 {[%clk 00:22:11]} {[%emt 00:03:44]} g6 {[%clk 00:25:41]}
{[%emt 00:01:15]} 31. h4 {[%clk 00:21:27]} {[%emt 00:01:14]} g5 {[%clk
00:25:12]} {[%emt 00:00:58]} 32. Kf3 {[%clk 00:21:12]} {[%emt 00:00:46]} g4+
{[%clk 00:24:21]} {[%emt 00:01:21]} 33. Ke4 {[%clk 00:19:18]} {[%emt 00:02:24]}
Kg6 {[%clk 00:24:40]} {[%emt 00:00:10]} 34. Rc2 {[%clk 00:18:13]} {[%emt
00:01:36]} Rcc8 {[%clk 00:24:33]} {[%emt 00:00:37]} 35. Rd2 {[%clk 00:18:21]}
{[%emt 00:00:22]} Rd8 {[%clk 00:23:44]} {[%emt 00:01:19]} 36. Rxd8 {[%clk
00:18:33]} {[%emt 00:00:18]} Rxd8 {[%clk 00:24:13]} {[%emt 00:00:01]} 37. Rxb7
{[%clk 00:18:55]} {[%emt 00:00:08]} Rd4+ {[%clk 00:24:36]} {[%emt 00:00:06]} 38.
Ke3 {[%clk 00:19:22]} {[%emt 00:00:04]} Rxb4 {[%clk 00:25:02]} {[%emt
00:00:04]} 39. c6 {[%clk 00:19:34]} {[%emt 00:00:17]} Rb3+ {[%clk 00:24:35]}
{[%emt 00:00:56]} 1-0